[Event "*** Titled Tuesday Blitz"]
[Site "Chess.com"]
[Date "2020.11.24"]
[Round "5"]
[White "Legendinunknown"]
[Black "Gerodot71"]
[Result "1-0"]
[WhiteElo "2677"]
[BlackElo "2468"]
[TimeControl "180+1"]
[EndTime "11:11:43 PST"]
[Termination "Legendinunknown won by resignation"]

1. d4 {[%clk 0:03:00.9]} 1... Nf6 {[%clk 0:02:59.1]} 2. c4 {[%clk 0:03:00.5]}
2... e6 {[%clk 0:02:59.5]} 3. Nc3 {[%clk 0:02:58.9]} 3... Bb4 {[%clk 0:02:59.1]}
4. f3 {[%clk 0:02:59.1]} 4... O-O {[%clk 0:02:48.7]} 5. e4 {[%clk 0:02:57.9]}
5... d5 {[%clk 0:02:44.8]} 6. cxd5 {[%clk 0:02:56.7]} 6... exd5 {[%clk
0:02:44.9]} 7. e5 {[%clk 0:02:57.1]} 7... Nfd7 {[%clk 0:02:44.8]} 8. a3 {[%clk
0:02:54.2]} 8... Ba5 {[%clk 0:02:35.2]} 9. f4 {[%clk 0:02:50.1]} 9... c5 {[%clk
0:02:33.3]} 10. Nf3 {[%clk 0:02:49.2]} 10... Nc6 {[%clk 0:02:32]} 11. Be3 {[%clk
0:02:47]} 11... cxd4 {[%clk 0:02:11.8]} 12. Nxd4 {[%clk 0:02:45.1]} 12... Re8
{[%clk 0:02:12.2]} 13. Be2 {[%clk 0:02:39.9]} 13... Nxd4 {[%clk 0:02:05.4]} 14.
Bxd4 {[%clk 0:02:39.3]} 14... f6 {[%clk 0:02:02.4]} 15. exf6 {[%clk 0:01:53.2]}
15... Nxf6 {[%clk 0:02:03.3]} 16. O-O {[%clk 0:01:52.6]} 16... Be6 {[%clk
0:01:50.7]} 17. Bf3 {[%clk 0:01:51.5]} 17... Bb6 {[%clk 0:01:46.9]} 18. Kh1
{[%clk 0:01:50.7]} 18... Rc8 {[%clk 0:01:43.5]} 19. Bxf6 {[%clk 0:01:38.4]}
19... Qxf6 {[%clk 0:01:41.5]} 20. Nxd5 {[%clk 0:01:38.9]} 20... Bxd5 {[%clk
0:01:21.4]} 21. Qxd5+ {[%clk 0:01:32.8]} 21... Kh8 {[%clk 0:01:21.6]} 22. b4
{[%clk 0:01:32.3]} 22... Re7 {[%clk 0:01:11.2]} 23. g3 {[%clk 0:01:15.4]} 23...
Rd8 {[%clk 0:01:09.2]} 24. Qc4 {[%clk 0:01:09.7]} 24... Rc7 {[%clk 0:01:01.2]}
25. Qe2 {[%clk 0:01:07.1]} 25... Re7 {[%clk 0:00:58]} 26. Qg2 {[%clk 0:01:06.3]}
26... Red7 {[%clk 0:00:55.4]} 27. Rae1 {[%clk 0:01:05.1]} 27... g6 {[%clk
0:00:51.7]} 28. Bxb7 {[%clk 0:00:52.7]} 28... Rd2 {[%clk 0:00:50.5]} 29. Re2
{[%clk 0:00:52.7]} 29... Qb2 {[%clk 0:00:49.6]} 30. Rfe1 {[%clk 0:00:50.4]}
30... Rxe2 {[%clk 0:00:25.2]} 31. Qxe2 {[%clk 0:00:49.9]} 31... Qxe2 {[%clk
0:00:11.3]} 32. Rxe2 {[%clk 0:00:50]} 32... Rd3 {[%clk 0:00:12.2]} 33. a4 {[%clk
0:00:49.2]} 33... Rb3 {[%clk 0:00:10.9]} 34. a5 {[%clk 0:00:46]} 34... Bd4
{[%clk 0:00:10.9]} 35. Re4 {[%clk 0:00:35.8]} 35... Rxb4 {[%clk 0:00:09.2]} 36.
Bd5 {[%clk 0:00:31.6]} 36... Rb2 {[%clk 0:00:09.1]} 37. Rxd4 {[%clk 0:00:30.5]}
1-0

[Event "*** Titled Tuesday Blitz"]
[Site "Chess.com"]
[Date "2020.11.24"]
[Round "5"]
[White "parintele_chess"]
[Black "freshfoodcompany"]
[Result "0-1"]
[WhiteElo "2199"]
[BlackElo "2364"]
[TimeControl "180+1"]
[EndTime "11:11:43 PST"]
[Termination "freshfoodcompany won by resignation"]

1. e4 {[%clk 0:02:58.2]} 1... c6 {[%clk 0:02:59.8]} 2. d4 {[%clk 0:02:57.4]}
2... d5 {[%clk 0:03:00.2]} 3. f3 {[%clk 0:02:58]} 3... dxe4 {[%clk 0:02:59.4]}
4. fxe4 {[%clk 0:02:58.9]} 4... e5 {[%clk 0:02:59.6]} 5. Nf3 {[%clk 0:02:55.5]}
5... Bg4 {[%clk 0:02:59.6]} 6. Bc4 {[%clk 0:02:52.7]} 6... Nd7 {[%clk
0:02:57.6]} 7. O-O {[%clk 0:02:51.1]} 7... Ngf6 {[%clk 0:02:52]} 8. h3 {[%clk
0:02:46.2]} 8... Bxf3 {[%clk 0:02:50.3]} 9. Qxf3 {[%clk 0:02:45.7]} 9... Qb6
{[%clk 0:02:47.8]} 10. Nc3 {[%clk 0:02:17.7]} 10... Qxd4+ {[%clk 0:02:42.7]} 11.
Be3 {[%clk 0:02:15.9]} 11... Qxc4 {[%clk 0:02:41.5]} 12. Rad1 {[%clk 0:02:10.4]}
12... Bc5 {[%clk 0:02:38.2]} 13. Bxc5 {[%clk 0:01:52.1]} 13... Qxc5+ {[%clk
0:02:37]} 14. Kh2 {[%clk 0:01:50.4]} 14... O-O {[%clk 0:02:34.8]} 15. Qg3 {[%clk
0:01:47.7]} 15... Qe7 {[%clk 0:02:28.8]} 16. Rf5 {[%clk 0:01:44.6]} 16... h6
{[%clk 0:02:19.6]} 17. Rdf1 {[%clk 0:01:43.3]} 17... Kh7 {[%clk 0:02:16.1]} 18.
Qh4 {[%clk 0:01:30.1]} 18... Rae8 {[%clk 0:02:02.9]} 19. g4 {[%clk 0:01:20.7]}
19... Ng8 {[%clk 0:02:00.5]} 20. Qg3 {[%clk 0:01:07.9]} 20... f6 {[%clk
0:01:54]} 21. h4 {[%clk 0:00:54.5]} 21... g6 {[%clk 0:01:29.8]} 22. R5f2 {[%clk
0:00:43.3]} 22... Qg7 {[%clk 0:01:27.3]} 23. Qd3 {[%clk 0:00:30.6]} 23... Nc5
{[%clk 0:01:22.2]} 24. Qe3 {[%clk 0:00:30.3]} 24... Ne6 {[%clk 0:01:21.1]} 25.
Qxa7 {[%clk 0:00:25.4]} 25... Nf4 {[%clk 0:01:14.1]} 26. Ne2 {[%clk 0:00:23.5]}
26... Nxe2 {[%clk 0:01:11.4]} 27. Rxe2 {[%clk 0:00:24.4]} 27... Rd8 {[%clk
0:01:07.9]} 28. Qe3 {[%clk 0:00:23.1]} 28... Ne7 {[%clk 0:01:04.2]} 29. c4
{[%clk 0:00:20.3]} 29... Nc8 {[%clk 0:01:03.4]} 30. b4 {[%clk 0:00:18.4]} 30...
Nd6 {[%clk 0:01:02.7]} 31. c5 {[%clk 0:00:17.6]} 31... Nb5 {[%clk 0:01:02]} 32.
a4 {[%clk 0:00:16.3]} 32... Nd4 {[%clk 0:01:01.8]} 33. Ref2 {[%clk 0:00:16.6]}
33... Ne6 {[%clk 0:01:00.5]} 34. Qb3 {[%clk 0:00:11.9]} 34... Nf4 {[%clk
0:00:59.3]} 35. Rxf4 {[%clk 0:00:11.5]} 35... exf4 {[%clk 0:00:59]} 36. b5
{[%clk 0:00:12.4]} 36... Qf7 {[%clk 0:00:57.9]} 37. Qxf7+ {[%clk 0:00:12.1]}
37... Rxf7 {[%clk 0:00:58.8]} 38. Rxf4 {[%clk 0:00:12.6]} 38... Rd2+ {[%clk
0:00:57.7]} 39. Kg3 {[%clk 0:00:12.6]} 39... Ra2 {[%clk 0:00:57.2]} 40. e5
{[%clk 0:00:12.1]} 40... Kg7 {[%clk 0:00:53]} 41. e6 {[%clk 0:00:12.3]} 41...
Re7 {[%clk 0:00:52.2]} 42. Rd4 {[%clk 0:00:12.9]} 42... Re2 {[%clk 0:00:48.7]}
43. Rd7 {[%clk 0:00:11.7]} 43... Rxe6 {[%clk 0:00:46.8]} 44. bxc6 {[%clk
0:00:11.9]} 44... bxc6 {[%clk 0:00:46.2]} 45. Rd6 {[%clk 0:00:10.4]} 45... Rxd6
{[%clk 0:00:46.1]} 46. cxd6 {[%clk 0:00:10.8]} 46... Rd7 {[%clk 0:00:46.2]} 0-1

[Event "*** Titled Tuesday Blitz"]
[Site "Chess.com"]
[Date "2020.11.24"]
[Round "5"]
[White "QuintilianoR"]
[Black "kot60"]
[Result "1-0"]
[WhiteElo "2674"]
[BlackElo "2467"]
[TimeControl "180+1"]
[EndTime "11:11:44 PST"]
[Termination "QuintilianoR won on time"]

1. d4 {[%clk 0:03:00.9]} 1... Nf6 {[%clk 0:02:56.9]} 2. c4 {[%clk 0:03:00.5]}
2... e5 {[%clk 0:02:56.8]} 3. dxe5 {[%clk 0:02:59.8]} 3... Ng4 {[%clk
0:02:56.9]} 4. Nf3 {[%clk 0:02:59.8]} 4... Bc5 {[%clk 0:02:56.8]} 5. e3 {[%clk
0:02:59.1]} 5... Nc6 {[%clk 0:02:56.9]} 6. Nc3 {[%clk 0:02:57.1]} 6... O-O
{[%clk 0:02:56.6]} 7. Be2 {[%clk 0:02:57]} 7... Re8 {[%clk 0:02:56.4]} 8. O-O
{[%clk 0:02:49.5]} 8... Ncxe5 {[%clk 0:02:56.3]} 9. Nxe5 {[%clk 0:02:48.6]} 9...
Nxe5 {[%clk 0:02:56.2]} 10. b3 {[%clk 0:02:48.5]} 10... a5 {[%clk 0:02:55.1]}
11. Bb2 {[%clk 0:02:48.2]} 11... Ra6 {[%clk 0:02:55.2]} 12. Ne4 {[%clk 0:02:15]}
12... Bf8 {[%clk 0:02:53.2]} 13. Qd5 {[%clk 0:02:08.6]} 13... Nc6 {[%clk
0:02:33.1]} 14. Ng5 {[%clk 0:01:37.1]} 14... Qe7 {[%clk 0:02:24.9]} 15. c5
{[%clk 0:01:19.6]} 15... Nb4 {[%clk 0:02:12.4]} 16. Qf5 {[%clk 0:00:58.4]} 16...
Rg6 {[%clk 0:01:59.5]} 17. h4 {[%clk 0:00:55]} 17... h6 {[%clk 0:01:09.4]} 18.
Bc4 {[%clk 0:00:50]} 18... d5 {[%clk 0:00:54]} 19. cxd6 {[%clk 0:00:49.6]} 19...
Bxf5 {[%clk 0:00:50.2]} 20. dxe7 {[%clk 0:00:49.2]} 20... hxg5 {[%clk
0:00:38.2]} 21. exf8=Q+ {[%clk 0:00:45.1]} 21... Rxf8 {[%clk 0:00:33.7]} 22.
hxg5 {[%clk 0:00:44]} 22... Rxg5 {[%clk 0:00:32.4]} 23. Rfd1 {[%clk 0:00:41.4]}
23... Rg6 {[%clk 0:00:22.3]} 24. f3 {[%clk 0:00:33.1]} 24... c6 {[%clk
0:00:17.2]} 25. Kf2 {[%clk 0:00:29.5]} 25... Re8 {[%clk 0:00:09.1]} 26. e4
{[%clk 0:00:21.3]} 26... Be6 {[%clk 0:00:08.9]} 27. Bf1 {[%clk 0:00:21.1]} 27...
f5 {[%clk 0:00:01.8]} 28. a3 {[%clk 0:00:10.9]} 28... Na6 {[%clk 0:00:01.3]} 29.
exf5 {[%clk 0:00:11.3]} 29... Bxf5 {[%clk 0:00:01.7]} 30. Rd4 {[%clk 0:00:11.9]}
30... Be6 {[%clk 0:00:01.5]} 31. b4 {[%clk 0:00:11.6]} 1-0

[Event "*** Titled Tuesday Blitz"]
[Site "Chess.com"]
[Date "2020.11.24"]
[Round "5"]
[White "hansen"]
[Black "mbojan"]
[Result "1-0"]
[WhiteElo "2937"]
[BlackElo "2698"]
[TimeControl "180+1"]
[EndTime "11:11:46 PST"]
[Termination "hansen won by checkmate"]

1. e4 {[%clk 0:03:00.9]} 1... c5 {[%clk 0:02:57.3]} 2. Nf3 {[%clk 0:03:00.5]}
2... Nc6 {[%clk 0:02:57.5]} 3. Bb5 {[%clk 0:03:00.5]} 3... g6 {[%clk 0:02:57.3]}
4. O-O {[%clk 0:02:55]} 4... Bg7 {[%clk 0:02:56.3]} 5. Bxc6 {[%clk 0:02:54]}
5... dxc6 {[%clk 0:02:55.7]} 6. h3 {[%clk 0:02:53.1]} 6... Nf6 {[%clk
0:02:55.5]} 7. d3 {[%clk 0:02:53.2]} 7... Nd7 {[%clk 0:02:55.5]} 8. Nc3 {[%clk
0:02:53.7]} 8... e5 {[%clk 0:02:55.1]} 9. Be3 {[%clk 0:02:53]} 9... Qe7 {[%clk
0:02:54.8]} 10. Qd2 {[%clk 0:02:53.4]} 10... h6 {[%clk 0:02:54.8]} 11. a3 {[%clk
0:02:52.2]} 11... Nf8 {[%clk 0:02:38.4]} 12. Na4 {[%clk 0:02:45.9]} 12... Ne6
{[%clk 0:02:37.1]} 13. b4 {[%clk 0:02:44.2]} 13... b6 {[%clk 0:02:34.3]} 14.
bxc5 {[%clk 0:02:06.4]} 14... b5 {[%clk 0:02:33.5]} 15. Nc3 {[%clk 0:02:07]}
15... f5 {[%clk 0:02:27.6]} 16. exf5 {[%clk 0:01:49.7]} 16... gxf5 {[%clk
0:02:28.5]} 17. Qd1 {[%clk 0:01:47.9]} 17... e4 {[%clk 0:01:56.5]} 18. dxe4
{[%clk 0:01:48.2]} 18... Bxc3 {[%clk 0:01:55.8]} 19. exf5 {[%clk 0:01:48.6]}
19... Nxc5 {[%clk 0:01:38.6]} 20. Nh4 {[%clk 0:01:31.3]} 20... Qxh4 {[%clk
0:01:18.7]} 21. Bxc5 {[%clk 0:01:31.1]} 21... Bxf5 {[%clk 0:01:10.3]} 22. Qf3
{[%clk 0:01:23.3]} 22... Qf6 {[%clk 0:00:28.8]} 23. Rfe1+ {[%clk 0:01:11.9]}
23... Kf7 {[%clk 0:00:20.7]} 24. Be7 {[%clk 0:01:09.5]} 24... Qg6 {[%clk
0:00:04.5]} 25. Qxc3 {[%clk 0:01:06.7]} 25... Rhg8 {[%clk 0:00:04.6]} 26. g3
{[%clk 0:01:04.5]} 26... Rae8 {[%clk 0:00:04.7]} 27. Bh4 {[%clk 0:00:48.9]}
27... Be4 {[%clk 0:00:04.6]} 28. a4 {[%clk 0:00:42.3]} 28... b4 {[%clk
0:00:03.8]} 29. Qxb4 {[%clk 0:00:40.4]} 29... Bd5 {[%clk 0:00:04.3]} 30. Qb7+
{[%clk 0:00:35.6]} 30... Kf8 {[%clk 0:00:04.9]} 31. Qxa7 {[%clk 0:00:33.6]}
31... Qd6 {[%clk 0:00:02.4]} 32. Rxe8+ {[%clk 0:00:30.7]} 32... Kxe8 {[%clk
0:00:03.3]} 33. Re1+ {[%clk 0:00:31.1]} 33... Be6 {[%clk 0:00:02]} 34. Qh7
{[%clk 0:00:21.9]} 34... Kf8 {[%clk 0:00:01.8]} 35. a5 {[%clk 0:00:20.1]} 35...
Qd5 {[%clk 0:00:01.7]} 36. Qe7# {[%clk 0:00:19.8]} 1-0

[Event "*** Titled Tuesday Blitz"]
[Site "Chess.com"]
[Date "2020.11.24"]
[Round "5"]
[White "seorobert1971"]
[Black "TrickyFortem"]
[Result "1-0"]
[WhiteElo "2711"]
[BlackElo "2488"]
[TimeControl "180+1"]
[EndTime "11:11:46 PST"]
[Termination "seorobert1971 won by checkmate"]

1. Nf3 {[%clk 0:02:58.2]} 1... d5 {[%clk 0:02:34.9]} 2. d4 {[%clk 0:02:57.8]}
2... Nf6 {[%clk 0:02:33.9]} 3. c4 {[%clk 0:02:58.7]} 3... c6 {[%clk 0:02:33.9]}
4. Nc3 {[%clk 0:02:59]} 4... e6 {[%clk 0:02:30.4]} 5. Bg5 {[%clk 0:02:57.5]}
5... h6 {[%clk 0:02:29.4]} 6. Bxf6 {[%clk 0:02:55.3]} 6... Qxf6 {[%clk
0:02:29.5]} 7. e3 {[%clk 0:02:55.2]} 7... g6 {[%clk 0:02:29.5]} 8. Rc1 {[%clk
0:02:54.3]} 8... dxc4 {[%clk 0:02:27]} 9. Bxc4 {[%clk 0:02:53.1]} 9... Bg7
{[%clk 0:02:24.9]} 10. e4 {[%clk 0:02:52.4]} 10... O-O {[%clk 0:02:19.9]} 11. e5
{[%clk 0:02:52]} 11... Qf4 {[%clk 0:02:16.1]} 12. O-O {[%clk 0:02:47.6]} 12...
b5 {[%clk 0:02:12.5]} 13. Bd3 {[%clk 0:02:44.9]} 13... Rd8 {[%clk 0:02:10.2]}
14. h3 {[%clk 0:02:40.7]} 14... h5 {[%clk 0:02:01.9]} 15. g3 {[%clk 0:02:40.3]}
15... Qh6 {[%clk 0:02:01.2]} 16. Ne4 {[%clk 0:02:40.1]} 16... Bd7 {[%clk
0:01:51.5]} 17. h4 {[%clk 0:02:34.7]} 17... Na6 {[%clk 0:01:42.4]} 18. Qe2
{[%clk 0:02:33.7]} 18... Nc7 {[%clk 0:01:41.7]} 19. Rfd1 {[%clk 0:02:26.5]}
19... Nd5 {[%clk 0:01:41.3]} 20. Nd6 {[%clk 0:02:19.1]} 20... Bf8 {[%clk
0:01:39.2]} 21. Ne4 {[%clk 0:02:15.5]} 21... Be7 {[%clk 0:01:38]} 22. a3 {[%clk
0:02:14.9]} 22... Be8 {[%clk 0:01:36.6]} 23. Bb1 {[%clk 0:02:11.2]} 23... a6
{[%clk 0:01:36.1]} 24. Nfg5 {[%clk 0:02:07.7]} 24... Rac8 {[%clk 0:01:33.9]} 25.
Qf3 {[%clk 0:02:07]} 25... Rc7 {[%clk 0:01:25.1]} 26. Ba2 {[%clk 0:02:05.9]}
26... Qg7 {[%clk 0:01:16.3]} 27. Bxd5 {[%clk 0:01:56.6]} 27... Rxd5 {[%clk
0:01:15.3]} 28. Nf6+ {[%clk 0:01:54.3]} 28... Bxf6 {[%clk 0:01:14.7]} 29. exf6
{[%clk 0:01:54.3]} 29... Qf8 {[%clk 0:01:13.7]} 30. Qf4 {[%clk 0:01:47.4]} 30...
Qd6 {[%clk 0:01:12]} 31. Qe3 {[%clk 0:01:46.4]} 31... Rf5 {[%clk 0:01:01.2]} 32.
Ne4 {[%clk 0:01:38.7]} 32... Qf8 {[%clk 0:01:01]} 33. Rc5 {[%clk 0:01:37.6]}
33... a5 {[%clk 0:00:49.2]} 34. Rxf5 {[%clk 0:01:34.6]} 34... exf5 {[%clk
0:00:49.5]} 35. Nc5 {[%clk 0:01:31.4]} 35... Rc8 {[%clk 0:00:31]} 36. Re1 {[%clk
0:01:31.1]} 36... a4 {[%clk 0:00:29.1]} 37. Qe5 {[%clk 0:01:27.5]} 37... Kh7
{[%clk 0:00:24.8]} 38. f3 {[%clk 0:01:22.5]} 38... Kg8 {[%clk 0:00:15.6]} 39.
Kf2 {[%clk 0:01:22.1]} 39... Kh7 {[%clk 0:00:15.3]} 40. Qf4 {[%clk 0:01:02.5]}
40... Rd8 {[%clk 0:00:14.9]} 41. Re7 {[%clk 0:00:57]} 41... Rd5 {[%clk
0:00:10.3]} 42. Qb8 {[%clk 0:00:44.7]} 42... Rxd4 {[%clk 0:00:08.9]} 43. Rxe8
{[%clk 0:00:37.9]} 43... Qd6 {[%clk 0:00:08.5]} 44. Rh8# {[%clk 0:00:36.8]} 1-0

[Event "*** Titled Tuesday Blitz"]
[Site "Chess.com"]
[Date "2020.11.24"]
[Round "5"]
[White "MillyNeuf"]
[Black "juancruzarias"]
[Result "0-1"]
[WhiteElo "2390"]
[BlackElo "2546"]
[TimeControl "180+1"]
[EndTime "11:11:47 PST"]
[Termination "juancruzarias won on time"]

1. e4 {[%clk 0:02:58.9]} 1... d5 {[%clk 0:02:58.6]} 2. exd5 {[%clk 0:02:58.7]}
2... Qxd5 {[%clk 0:02:59.5]} 3. Nc3 {[%clk 0:02:58.8]} 3... Qd8 {[%clk
0:02:59.9]} 4. Bc4 {[%clk 0:02:57.5]} 4... Nf6 {[%clk 0:02:59.9]} 5. Nge2 {[%clk
0:02:56.8]} 5... Bg4 {[%clk 0:02:57.9]} 6. O-O {[%clk 0:02:56.3]} 6... e6 {[%clk
0:02:57.8]} 7. Qe1 {[%clk 0:02:51]} 7... Bxe2 {[%clk 0:02:56.2]} 8. Qxe2 {[%clk
0:02:50.5]} 8... Be7 {[%clk 0:02:55]} 9. d3 {[%clk 0:02:48.8]} 9... O-O {[%clk
0:02:54.5]} 10. Ne4 {[%clk 0:02:45.6]} 10... Nbd7 {[%clk 0:02:53.6]} 11. Nxf6+
{[%clk 0:02:43.3]} 11... Nxf6 {[%clk 0:02:53.6]} 12. Bf4 {[%clk 0:02:39.7]}
12... c6 {[%clk 0:02:53.7]} 13. Rae1 {[%clk 0:02:35]} 13... Qd4 {[%clk
0:02:52.9]} 14. Be5 {[%clk 0:02:33]} 14... Qd7 {[%clk 0:02:48.9]} 15. f4 {[%clk
0:02:22.4]} 15... Bc5+ {[%clk 0:02:46.3]} 16. Kh1 {[%clk 0:02:22.1]} 16... Bd4
{[%clk 0:02:46.7]} 17. c3 {[%clk 0:02:18]} 17... Bxe5 {[%clk 0:02:45.7]} 18.
fxe5 {[%clk 0:02:17.3]} 18... Nd5 {[%clk 0:02:45.7]} 19. d4 {[%clk 0:02:12.7]}
19... Ne7 {[%clk 0:02:28.5]} 20. Bd3 {[%clk 0:02:09.9]} 20... c5 {[%clk
0:02:23.8]} 21. Qe4 {[%clk 0:02:09.2]} 21... Ng6 {[%clk 0:02:21.5]} 22. h4
{[%clk 0:02:06.4]} 22... Qd5 {[%clk 0:02:16.7]} 23. Qxd5 {[%clk 0:01:37.5]}
23... exd5 {[%clk 0:02:16.3]} 24. h5 {[%clk 0:01:36.9]} 24... Ne7 {[%clk
0:02:16.1]} 25. dxc5 {[%clk 0:01:35.3]} 25... a5 {[%clk 0:02:12]} 26. Bb5 {[%clk
0:01:20]} 26... Rfc8 {[%clk 0:02:05.6]} 27. e6 {[%clk 0:01:18.8]} 27... f6
{[%clk 0:02:06]} 28. b4 {[%clk 0:01:11]} 28... axb4 {[%clk 0:02:05.4]} 29. cxb4
{[%clk 0:01:11.9]} 29... Rxa2 {[%clk 0:02:05.6]} 30. Bd7 {[%clk 0:01:11]} 30...
Rca8 {[%clk 0:02:03.3]} 31. b5 {[%clk 0:01:08]} 31... Rc2 {[%clk 0:01:56.5]} 32.
Rc1 {[%clk 0:01:04.2]} 32... Raa2 {[%clk 0:01:01.3]} 33. Rxc2 {[%clk 0:00:59.8]}
33... Rxc2 {[%clk 0:01:02.2]} 34. Ra1 {[%clk 0:00:47.6]} 34... h6 {[%clk
0:01:02.7]} 35. Ra8+ {[%clk 0:00:32.6]} 35... Kh7 {[%clk 0:01:02.5]} 36. Re8
{[%clk 0:00:14.6]} 36... d4 {[%clk 0:00:48.1]} 37. Rxe7 {[%clk 0:00:09.6]} 37...
d3 {[%clk 0:00:48.4]} 38. Bc8 {[%clk 0:00:04.2]} 38... d2 {[%clk 0:00:45.6]} 39.
Rd7 {[%clk 0:00:04.6]} 39... Rc1+ {[%clk 0:00:45.5]} 40. Kh2 {[%clk 0:00:04.2]}
40... d1=Q {[%clk 0:00:45.8]} 41. Rxd1 {[%clk 0:00:04.1]} 41... Rxd1 {[%clk
0:00:46.7]} 42. Bxb7 {[%clk 0:00:03.8]} 42... Kg8 {[%clk 0:00:45.3]} 43. Bc8
{[%clk 0:00:02]} 43... Kf8 {[%clk 0:00:44.5]} 44. c6 {[%clk 0:00:01.4]} 44...
Ke7 {[%clk 0:00:43.4]} 0-1

[Event "*** Titled Tuesday Blitz"]
[Site "Chess.com"]
[Date "2020.11.24"]
[Round "5"]
[White "ErikRonka"]
[Black "SameerMujumdar"]
[Result "0-1"]
[WhiteElo "2387"]
[BlackElo "2311"]
[TimeControl "180+1"]
[EndTime "11:11:53 PST"]
[Termination "SameerMujumdar won by resignation"]

1. d4 {[%clk 0:03:00.9]} 1... Nf6 {[%clk 0:02:55.4]} 2. Nf3 {[%clk 0:02:58.9]}
2... g6 {[%clk 0:02:55.4]} 3. g3 {[%clk 0:02:59.7]} 3... Bg7 {[%clk 0:02:55.8]}
4. Bg2 {[%clk 0:03:00.3]} 4... O-O {[%clk 0:02:56.7]} 5. O-O {[%clk 0:03:00.8]}
5... d6 {[%clk 0:02:57.5]} 6. a4 {[%clk 0:03:01.1]} 6... Nbd7 {[%clk 0:02:57.8]}
7. a5 {[%clk 0:03:00.3]} 7... a6 {[%clk 0:02:54.8]} 8. Nc3 {[%clk 0:02:59.7]}
8... e5 {[%clk 0:02:48.8]} 9. e4 {[%clk 0:02:59.2]} 9... exd4 {[%clk 0:02:46.9]}
10. Nxd4 {[%clk 0:02:58.7]} 10... Nc5 {[%clk 0:02:47.3]} 11. h3 {[%clk
0:02:52.2]} 11... Re8 {[%clk 0:02:46.6]} 12. Re1 {[%clk 0:02:50.2]} 12... Bd7
{[%clk 0:02:11.7]} 13. b4 {[%clk 0:02:25.6]} 13... Ne6 {[%clk 0:02:11.3]} 14.
Be3 {[%clk 0:02:26]} 14... Nxd4 {[%clk 0:02:09.6]} 15. Bxd4 {[%clk 0:02:26.9]}
15... Bc6 {[%clk 0:02:10.2]} 16. Qd3 {[%clk 0:02:14.2]} 16... Nd7 {[%clk
0:02:06.3]} 17. Bxg7 {[%clk 0:02:12.2]} 17... Kxg7 {[%clk 0:02:07.2]} 18. f4
{[%clk 0:02:11.4]} 18... Qf6 {[%clk 0:01:58.8]} 19. Rad1 {[%clk 0:02:10.6]}
19... h5 {[%clk 0:01:54.8]} 20. h4 {[%clk 0:02:07.9]} 20... Nf8 {[%clk
0:01:52.4]} 21. Nd5 {[%clk 0:01:58.2]} 21... Bxd5 {[%clk 0:01:51.5]} 22. Qxd5
{[%clk 0:01:45.4]} 22... Qc3 {[%clk 0:01:50.7]} 23. Qd4+ {[%clk 0:01:43.7]}
23... Qxd4+ {[%clk 0:01:51.1]} 24. Rxd4 {[%clk 0:01:44.6]} 24... Re7 {[%clk
0:01:42.1]} 25. Red1 {[%clk 0:01:35.7]} 25... Rae8 {[%clk 0:01:37.3]} 26. Rd5
{[%clk 0:01:26.7]} 26... Nd7 {[%clk 0:01:32.2]} 27. e5 {[%clk 0:01:19.8]} 27...
Nb8 {[%clk 0:01:26.3]} 28. exd6 {[%clk 0:01:18.8]} 28... cxd6 {[%clk 0:01:24.8]}
29. Rxd6 {[%clk 0:01:17.4]} 29... Rc7 {[%clk 0:01:21.7]} 30. R1d2 {[%clk
0:01:12.7]} 30... Rc3 {[%clk 0:01:16.2]} 31. Kh2 {[%clk 0:01:01.6]} 31... Ree3
{[%clk 0:01:11.7]} 32. R6d3 {[%clk 0:01:01.1]} 32... Rexd3 {[%clk 0:01:10.5]}
33. cxd3 {[%clk 0:00:58]} 33... Rb3 {[%clk 0:01:06.5]} 34. Bxb7 {[%clk
0:00:52.3]} 34... Rxb4 {[%clk 0:01:06.1]} 35. Bc8 {[%clk 0:00:50.5]} 35... Rd4
{[%clk 0:01:02.1]} 36. Kg2 {[%clk 0:00:47.2]} 36... Nc6 {[%clk 0:01:01.7]} 37.
Bxa6 {[%clk 0:00:45.5]} 37... Nxa5 {[%clk 0:01:01.1]} 38. Kf3 {[%clk 0:00:45.1]}
38... Nb3 {[%clk 0:00:57.1]} 39. Rc2 {[%clk 0:00:37]} 39... Ra4 {[%clk
0:00:54.4]} 40. Bb5 {[%clk 0:00:32.8]} 40... Nd4+ {[%clk 0:00:51.8]} 41. Kf2
{[%clk 0:00:29.9]} 41... Rb4 {[%clk 0:00:48.9]} 42. Rc4 {[%clk 0:00:09.3]} 42...
Rb2+ {[%clk 0:00:43.7]} 43. Ke3 {[%clk 0:00:09.8]} 43... Nxb5 {[%clk 0:00:41]}
44. d4 {[%clk 0:00:10.2]} 44... Rb3+ {[%clk 0:00:37.3]} 45. Kf2 {[%clk
0:00:10.5]} 45... Rd3 {[%clk 0:00:34.7]} 46. Kg2 {[%clk 0:00:08.2]} 46... Nxd4
{[%clk 0:00:34.1]} 47. Rc5 {[%clk 0:00:08.8]} 47... Nf5 {[%clk 0:00:34]} 48. Rc6
{[%clk 0:00:08.1]} 0-1

[Event "*** Titled Tuesday Blitz"]
[Site "Chess.com"]
[Date "2020.11.24"]
[Round "5"]
[White "TC2304"]
[Black "googlegoom"]
[Result "0-1"]
[WhiteElo "2338"]
[BlackElo "2471"]
[TimeControl "180+1"]
[EndTime "11:11:58 PST"]
[Termination "googlegoom won on time"]

1. d4 {[%clk 0:03:00.9]} 1... d5 {[%clk 0:02:59.8]} 2. c4 {[%clk 0:03:00.8]}
2... c6 {[%clk 0:02:59.7]} 3. Nc3 {[%clk 0:03:00.4]} 3... Nf6 {[%clk 0:03:00.3]}
4. e3 {[%clk 0:03:00.1]} 4... e6 {[%clk 0:03:00.8]} 5. Nf3 {[%clk 0:02:59.5]}
5... Nbd7 {[%clk 0:03:01.3]} 6. Bd3 {[%clk 0:02:56.1]} 6... Bd6 {[%clk
0:03:01.8]} 7. g4 {[%clk 0:02:56.3]} 7... Nxg4 {[%clk 0:02:58.8]} 8. Rg1 {[%clk
0:02:52.3]} 8... Nxh2 {[%clk 0:02:59.3]} 9. Nxh2 {[%clk 0:02:38.5]} 9... Bxh2
{[%clk 0:03:00.2]} 10. Rxg7 {[%clk 0:02:38.8]} 10... Nf8 {[%clk 0:02:58]} 11.
Qf3 {[%clk 0:02:23.4]} 11... Qe7 {[%clk 0:02:42.1]} 12. e4 {[%clk 0:02:16.7]}
12... dxc4 {[%clk 0:02:16.1]} 13. Bxc4 {[%clk 0:02:03.1]} 13... Ng6 {[%clk
0:02:12.5]} 14. Bg5 {[%clk 0:02:00.6]} 14... Qc7 {[%clk 0:02:03.4]} 15. e5
{[%clk 0:01:48.6]} 15... Bxe5 {[%clk 0:01:51.1]} 16. Bf6 {[%clk 0:01:19.5]}
16... Bxf6 {[%clk 0:01:38.4]} 17. Qxf6 {[%clk 0:01:19]} 17... Qe7 {[%clk
0:01:26.5]} 18. Ne4 {[%clk 0:01:07.3]} 18... Qf8 {[%clk 0:01:15.8]} 19. Rxf7
{[%clk 0:00:57.4]} 19... Qb4+ {[%clk 0:01:01.6]} 20. Kd1 {[%clk 0:00:52.1]}
20... Rf8 {[%clk 0:00:57.8]} 21. Rxf8+ {[%clk 0:00:34.7]} 21... Qxf8 {[%clk
0:00:57]} 22. Qg5 {[%clk 0:00:24.9]} 22... Qf3+ {[%clk 0:00:45.8]} 23. Kc2
{[%clk 0:00:14.7]} 23... Qxe4+ {[%clk 0:00:44.7]} 24. Bd3 {[%clk 0:00:15.3]}
24... Qxd4 {[%clk 0:00:31.1]} 25. Re1 {[%clk 0:00:12.3]} 25... Qxf2+ {[%clk
0:00:23.1]} 26. Re2 {[%clk 0:00:12.3]} 26... Qf7 {[%clk 0:00:19.9]} 27. Rh2
{[%clk 0:00:11.8]} 27... Qe7 {[%clk 0:00:11.8]} 28. Qe3 {[%clk 0:00:02.9]} 28...
Kd7 {[%clk 0:00:08.5]} 29. Qd4+ {[%clk 0:00:01.6]} 29... Kc7 {[%clk 0:00:08.3]}
30. Qe3 {[%clk 0:00:01.3]} 30... Bd7 {[%clk 0:00:07.4]} 31. Qf2 {[%clk
0:00:01.9]} 31... e5 {[%clk 0:00:07.4]} 32. Rh6 {[%clk 0:00:01.7]} 32... Rf8
{[%clk 0:00:06.5]} 33. Qg3 {[%clk 0:00:01.6]} 33... Qc5+ {[%clk 0:00:06.4]} 34.
Kb3 {[%clk 0:00:01.6]} 34... Be6+ {[%clk 0:00:05.7]} 0-1